fUSD/lending_fUSD_20240319
["ID","MTS","AMOUNT","RATE_DAILY","PERIOD"]
[319559625,1710858632391,-286.75160679,0.00019997,2]
[319559626,1710858632403,-181.63710678,0.00019999,2]
[319559627,1710858632414,-104.56412096,0.00019999,2]
[319559628,1710858632435,-986.46397527,0.00019999,2]
[319559629,1710858632485,-25950.4275,0.00019999,2]
[319559630,1710858632499,-399.11744912,0.00019999,2]
[319559631,1710858632513,-2610.63779537,0.00019999,2]
[319559632,1710858632532,-3260.64133214,0.00019999,2]
[319559633,1710858632569,-714.323337,0.00019999,2]
[319559634,1710858632584,-252.633,0.00019999,2]
[319559635,1710858632666,-1764.97545464,0.00019999,2]
[319559636,1710858632700,-27664.11652581,0.00019999,2]
[319559637,1710858632711,-499.99,0.00019999,2]
[319559639,1710858632723,-3280.39347419,0.0002,2]
[319559649,1710858632790,-6298.11824,0.0002,2]
[319559650,1710858632805,-2124.37907259,0.0002,2]
[319559651,1710858632817,-150.83798766,0.00025269,2]
[319559652,1710858632828,-287.04397323,0.00026,27]
[319559653,1710858632842,-1587.84903117,0.00026,27]
[319559654,1710858632854,-692.0,0.000266,3]
[319559655,1710858632866,-150.83798766,0.00026637,2]
[319559656,1710858632881,-163.08,0.00028174,2]
[319559657,1710858632893,-178.26490807,0.00029583,2]
[319559658,1710858632904,-178.26490807,0.00029583,2]
[319559659,1710858632916,-178.26490807,0.00029583,2]
[319559660,1710858632928,-178.26490807,0.00029583,2]
[319559661,1710858632940,-4080.82917499,0.00029593,2]
[319559662,1710858632955,-4144.26708576,0.00029593,2]
[319559663,1710858633006,-15664.90373925,0.00029593,2]
[319559664,1710858633018,-150.0,0.00029674,2]
[319559665,1710858633029,-242.91,0.00029952,2]
[319559666,1710858633040,-150.0,0.00029978,2]
[319559667,1710858633053,-178.26490807,0.0002999,2]
[319559668,1710858633064,-271.55242602,0.0003,4]
[319559669,1710858633076,-250.0,0.00030298,2]
[319559670,1710858633088,-178.26490807,0.00030306,2]
[319559671,1710858633100,-1682.69,0.00030316,2]
[319559672,1710858633112,-250.0,0.00030316,2]
[319559673,1710858633124,-150.83798766,0.00030379,7]
[319559674,1710858633136,-163.08,0.00030438,2]
[319559675,1710858633148,-150.0,0.00030449,2]
[319559676,1710858633160,-163.16,0.00030503,2]
[319559677,1710858633172,-200.0,0.00030555,2]
[319559678,1710858633183,-178.26490807,0.00030733,2]
[319559679,1710858633196,-284.74,0.00030743,2]
[319559680,1710858633208,-178.26490807,0.00030797,2]
[319559681,1710858633220,-1154.046479,0.000308,2]
[319559682,1710858633232,-1276.39,0.00030807,2]
[319559683,1710858633244,-163.16,0.00030901,2]
[319559684,1710858633255,-178.26490807,0.00031048,2]
[319559685,1710858633267,-200.0,0.00031058,2]
[319559686,1710858633279,-1154.82,0.00031058,2]
[319559687,1710858633291,-163.16,0.00031298,2]
[319559688,1710858633302,-178.26490807,0.00031577,2]
[319559689,1710858633314,-163.6555038,0.00031587,7]
[319559690,1710858633326,-163.16,0.00031695,2]
[319559691,1710858633338,-163.16,0.00032093,2]
[319559692,1710858633349,-206.02,0.00032125,2]
[319559693,1710858633361,-167.0,0.00032331,2]
[319559694,1710858633374,-162.73,0.00032534,2]
[319559695,1710858633385,-163.08,0.00032702,2]
[319559696,1710858633397,-178.26490807,0.00033314,2]
[319559697,1710858633408,-178.26490807,0.00033314,2]
[319559698,1710858633421,-2693.73,0.00033324,2]
[319559699,1710858633433,-206.02,0.00033495,2]
[319559700,1710858633447,-281.98,0.00033536,120]
[319559701,1710858633460,-178.26490807,0.00033594,2]
[319559702,1710858633472,-160.56,0.00033604,10]
[319559703,1710858633483,-250.0,0.00033604,2]
[319559704,1710858633495,-1154.82,0.00033798,2]
[319559705,1710858633505,-178.26490807,0.00033971,2]
[319559706,1710858633517,-496.82086073,0.00033981,4]
[319559707,1710858633529,-153.01160755,0.0003413,7]
[319559708,1710858633540,-284.74,0.00034586,2]
[319559709,1710858633552,-150.83798766,0.00034933,7]
[319559710,1710858633564,-163.08,0.00034965,2]
[319559711,1710858633576,-204.30730844,0.00035491,4]
[319559712,1710858633588,-178.26490807,0.0003587,2]
[319559713,1710858633600,-178.26490807,0.0003587,2]
[319559714,1710858633611,-178.26490807,0.0003587,2]
[319559715,1710858633623,-178.26490807,0.0003587,2]
[319559716,1710858633635,-178.26490807,0.0003587,2]
[319559717,1710858633646,-178.26490807,0.0003587,2]
[319559718,1710858633657,-178.26490807,0.0003587,2]
[319559719,1710858633669,-178.26490807,0.0003587,2]
[319559720,1710858633681,-178.26490807,0.0003587,2]
[319559721,1710858633693,-13276.56939568,0.0003588,2]
[319559722,1710858633704,-178.26490807,0.00036528,2]
[319559723,1710858633716,-1154.82,0.00036538,2]
[319559724,1710858633727,-624.02691913,0.000366,2]
[319559725,1710858633738,-178.26490807,0.00036702,2]
[319559726,1710858633749,-500.0,0.00036712,60]
[319559727,1710858633761,-178.26490807,0.00036849,2]
[319559728,1710858633772,-715.65,0.00036876,60]
[319559729,1710858633783,-527.31978952,0.00036921,2]
[319559730,1710858633795,-178.26490807,0.00036972,2]
[319559731,1710858633805,-527.31978952,0.00036982,2]
[319559732,1710858633817,-527.31978952,0.00037044,2]
[319559733,1710858633829,-527.31978952,0.00037105,2]
[319559734,1710858633841,-178.26490807,0.00037157,2]
[319559735,1710858633852,-527.31978952,0.00037167,2]
[319559736,1710858633863,-178.26490807,0.0003718,2]
[319559737,1710858633875,-178.26490807,0.0003718,2]
[319559738,1710858633886,-6820.03561487,0.0003719,2]
[319559739,1710858633901,-150.0,0.00037205,2]
[319559740,1710858633912,-527.31978952,0.00037228,2]
[319559741,1710858633924,-163.08,0.00037229,2]
[319559742,1710858633935,-527.31978952,0.0003729,2]
[319559743,1710858633948,-6820.03561487,0.00037344,2]
[319559744,1710858633959,-527.31978952,0.00037351,2]
[319559745,1710858633970,-624.02691907,0.00037358,2]
[319559746,1710858633983,-527.31978952,0.00037413,2]
[319559747,1710858633994,-527.31978952,0.00037474,2]
[319559748,1710858634006,-6820.03561487,0.00037498,2]
[319559749,1710858634017,-500.0,0.00037534,62]
[319559750,1710858634029,-527.31978952,0.00037536,2]
[319559751,1710858634040,-273.79324678,0.00037559,9]
[319559752,1710858634051,-527.31978952,0.00037597,2]
[319559753,1710858634062,-168.54,0.00037649,2]
[319559754,1710858634075,-6820.03561487,0.00037652,2]
[319559755,1710858634087,-1698.17877036,0.00037658,4]
[319559756,1710858634099,-7500.0,0.00037659,2]
[319559757,1710858634111,-381995.0566,0.00037659,120]
[319559758,1710858634122,-213.85666124,0.00037659,2]
[319559759,1710858634135,-153.02334132,0.00037659,2]
[319559760,1710858634146,-527.31978952,0.00037659,2]
[319559761,1710858634158,-2171.40615882,0.00037659,28]
[319559762,1710858634169,-170.67857533,0.00037659,2]
[319559763,1710858634181,-428.9174081,0.00037659,12]
[319559764,1710858634192,-708.59236052,0.00037659,2]
[319559765,1710858634206,-584.41766674,0.00037659,2]
[319559766,1710858634219,-167.0,0.00037667,2]
[319559767,1710858634231,-1494.15485359,0.00037698,10]
[319559768,1710858634243,-715.65,0.00037698,62]
[319559769,1710858634255,-281.98,0.00037728,120]
[319559770,1710858634267,-168.54,0.00037749,2]
[319559771,1710858634281,-39670.75274814,0.00037756,2]
[319559772,1710858634346,-534.17849759,0.00037757,4]
[319559773,1710858634358,-737.56434103,0.00037757,4]
[319559774,1710858634370,-283.32356226,0.00037757,15]
[319559775,1710858634381,-446.37100814,0.00037757,4]
[319559776,1710858634393,-276.56675073,0.00037757,4]
[319559777,1710858634405,-709.65023788,0.00037757,4]
[319559778,1710858634416,-315.96090943,0.00037757,4]
[319559779,1710858634427,-352.24050656,0.00037757,4]
[319559780,1710858634439,-784.18185859,0.00037757,4]
[319559781,1710858634451,-1016.72122733,0.00037757,4]
[319559782,1710858634462,-2963.15971193,0.00037757,4]
[319559783,1710858634474,-301.98283178,0.00037758,10]
[319559784,1710858634486,-309.25214321,0.00037758,10]
[319559785,1710858634497,-1000.0,0.00037758,2]
[319559786,1710858634509,-1000.0,0.00037758,2]
[319559787,1710858634522,-1000.0,0.00037758,2]
[319559788,1710858634534,-1000.0,0.00037758,2]
[319559789,1710858634545,-1000.0,0.00037758,2]
[319559790,1710858634557,-1000.0,0.00037758,2]
[319559791,1710858634568,-1000.0,0.00037758,2]
[319559792,1710858634579,-624.75173887,0.00037758,2]
[319559793,1710858634591,-341.17326449,0.00037758,2]
[319559794,1710858634602,-341.17326449,0.00037758,2]
[319559795,1710858634613,-341.17326449,0.00037758,2]
[319559796,1710858634624,-341.17326449,0.00037758,2]
[319559797,1710858634636,-341.17326449,0.00037758,2]
[319559798,1710858634647,-341.17326449,0.00037758,2]
[319559799,1710858634658,-24098.99223084,0.00037758,5]
[319559800,1710858634675,-65286.0000001,0.00037758,5]
[319559813,1710858638317,-178.26490807,0.0003718,2]
[319559814,1710858638327,-178.26490807,0.0003718,2]
[319559815,1710858638337,-178.26490807,0.00037218,2]
[319559816,1710858638347,-178.26490807,0.00037334,2]
[319559817,1710858638358,-178.26490807,0.00037334,2]
[319559818,1710858638367,-178.26490807,0.00037334,2]
[319559819,1710858638377,-178.26490807,0.00037334,2]
[319559820,1710858638387,-178.26490807,0.00037334,2]
[319559821,1710858638396,-178.26490807,0.00037403,2]
[319559822,1710858638406,-178.26490807,0.00037488,2]
[319559823,1710858638415,-178.26490807,0.00037488,2]
[319559824,1710858638426,-178.26490807,0.00037488,2]
[319559825,1710858638436,-172.21429208,0.00037488,2]
[319559826,1710858638448,-6.05061599,0.00037488,2]
[319559827,1710858638461,-178.26490807,0.00037488,2]
[319559828,1710858638472,-178.26490807,0.00037588,2]
[319559829,1710858638481,-178.26490807,0.00037642,2]
[319559830,1710858638491,-178.26490807,0.00037642,2]
[319559831,1710858638500,-178.26490807,0.00037642,2]
[319559832,1710858638510,-178.26490807,0.00037642,2]
[319559833,1710858638520,-178.26490807,0.00037648,2]
[319559834,1710858638530,-178.26490807,0.00037649,2]
[319559835,1710858638540,-178.26490807,0.00037649,2]
[319559836,1710858638550,-178.26490807,0.00037649,2]
[319559837,1710858638560,-178.26490807,0.00037649,2]
[319559838,1710858638570,-178.26490807,0.00037649,2]
[319559839,1710858638580,-178.26490807,0.00037649,2]
[319559840,1710858638590,-178.26490807,0.00037649,2]
[319559841,1710858638600,-120.35203154,0.00037649,2]
[319559844,1710858638729,-57.91287653,0.00037649,2]
[319559846,1710858638739,-178.26490807,0.00037649,2]
[319559848,1710858638749,-64.1422154,0.00037649,2]
[319559857,1710858638988,-114.12269267,0.00037649,2]
[319559858,1710858638999,-178.26490807,0.00037649,2]
[319559859,1710858639009,-178.26490807,0.00037649,2]
[319559860,1710858639020,-178.26490807,0.00037649,2]
[319559861,1710858639030,-178.26490807,0.00037649,2]
[319559862,1710858639040,-7093.96871114,0.00037758,5]
[319559863,1710858639089,-178.26490807,0.00037649,2]
[319559864,1710858639100,-2429.22705745,0.00037758,5]
[319559865,1710858639112,-6700.0,0.00037758,5]
[319559866,1710858639242,-6269.4,0.00037758,5]
[319559867,1710858639255,-1579.03050975,0.00037758,5]
[319559869,1710858640689,-178.26490807,0.00037649,2]
[319559870,1710858640699,-178.26490807,0.00037649,2]
[319559871,1710858640710,-128997.07018386,0.00037758,5]
[319559872,1710858640722,-508.1,0.00037758,5]
[319559873,1710858640738,-94162.31983232,0.00037758,5]
[319559874,1710858640750,-298.6794626,0.00037758,5]
[319559875,1710858640761,-1783.69770093,0.00037758,5]
[319559876,1710858640773,-587.9488802,0.00037758,5]
[319559877,1710858640788,-1884.485,0.00037758,5]
[319559878,1710858640808,-234108.3224013,0.00037758,5]
[319559879,1710858640824,-3978.74159999,0.00037758,5]
[319559880,1710858640865,-273.7432171,0.00037758,5]
[319559915,1710858643405,-178.26490807,0.00037649,2]
[319559917,1710858643415,-178.26490807,0.00037649,2]
[319559919,1710858643426,-178.26490807,0.00037649,2]
[319559921,1710858643436,-178.26490807,0.00037649,2]
[319559923,1710858643447,-178.26490807,0.00037649,2]
[319559925,1710858643459,-178.26490807,0.00037649,2]
[319559927,1710858643469,-178.26490807,0.00037649,2]
[319559929,1710858643480,-178.26490807,0.00037649,2]
[319559930,1710858643491,-178.26490807,0.00037649,2]
[319559931,1710858643502,-178.26490807,0.00037649,2]
[319559932,1710858643512,-178.26490807,0.00037649,2]
[319559933,1710858643523,-178.26490807,0.00037649,2]
[319559934,1710858643533,-940494.57769719,0.00037758,5]
[319559935,1710858643571,-1256.451495,0.00037758,5]
[319559936,1710858643584,-569.85819587,0.00037758,5]
[319559937,1710858643606,-178.26490807,0.00037649,2]
[319559938,1710858643616,-9609.57509192,0.00037758,5]
[319559939,1710858643628,-4953.01119774,0.00037758,5]
[319559940,1710858643640,-16133.13265183,0.00037758,5]
[319559941,1710858643653,-6091.22439924,0.00037758,5]
[319559942,1710858643665,-2575.58342954,0.00037758,5]
[319559943,1710858643678,-5408.62833188,0.00037758,5]
[319559944,1710858643690,-72061.19130568,0.00037758,5]
[319559945,1710858643807,-4575.23691619,0.00037758,5]
[319559946,1710858643819,-25825.55650373,0.00037758,5]
[319559947,1710858643831,-18047.78042071,0.00037758,5]
[319559948,1710858643843,-17780.80380727,0.00037758,5]
[319559949,1710858643855,-71221.33458198,0.00037758,5]
[319559950,1710858643867,-450.03541892,0.00037758,5]
[319559951,1710858643880,-538.79284284,0.00037758,5]
[319559952,1710858643894,-6287.3997,0.00037758,5]
[319559960,1710858646356,-178.26490807,0.00037649,2]
[319559962,1710858646366,-178.26490807,0.00037649,2]
[319559964,1710858646375,-178.26490807,0.00037649,2]
[319559966,1710858646385,-178.26490807,0.00037649,2]
[319559968,1710858646394,-178.26490807,0.00037649,2]
[319559970,1710858646404,-178.26490807,0.00037649,2]
[319559972,1710858646414,-178.26490807,0.00037649,2]
[319559974,1710858646424,-178.26490807,0.00037649,2]
[319559976,1710858646433,-42.81040869,0.00037649,2]
[319559977,1710858646446,-135.45449938,0.00037649,2]
[319559978,1710858646455,-178.26490807,0.00037649,2]
[319559979,1710858646467,-178.26490807,0.00037649,2]
[319559980,1710858646478,-76.03500693,0.00037649,2]
[319559981,1710858646505,-102.22990114,0.00037649,2]
[319559982,1710858646515,-178.26490807,0.00037649,2]
[319559983,1710858646525,-178.26490807,0.00037649,2]
[319559984,1710858646536,-178.26490807,0.00037649,2]
[319559985,1710858646545,-178.26490807,0.00037649,2]
[319559986,1710858646555,-178.26490807,0.00037649,2]
[319559987,1710858646565,-152.63,0.00037753,5]
[319559988,1710858646575,-311.98533966,0.00037757,4]
[319559989,1710858646586,-155.55177531,0.00037757,4]
[319559990,1710858646595,-1349.10527354,0.00037758,5]
[319559991,1710858646611,-15507.95095176,0.00037758,5]
[319559992,1710858646640,-319.31715993,0.00037758,5]
[319559993,1710858646665,-178.26490807,0.00037649,2]
[319559994,1710858646675,-2367.24315765,0.00037758,5]
[319559995,1710858646686,-6398.54993,0.00037758,5]
[319559996,1710858646698,-648.21,0.00037758,5]
[319559997,1710858646713,-1116.9999998,0.00037758,5]
[319559998,1710858646723,-1576.935,0.00037758,5]
[319559999,1710858646882,-178.26490807,0.00037649,2]
[319560000,1710858646895,-4837.00109041,0.00037758,5]
[319560001,1710858646906,-1534.706499,0.00037758,5]
[319560014,1710858857946,5000.0,0.00013901,2]
[319560051,1710859831536,-1585.93280439,0.00019171,2]
[319560052,1710859831547,-188.50937058,0.00019171,2]
[319560053,1710859831557,-1053.13673053,0.00019172,2]
[319560054,1710859831566,-240.0,0.00019199,2]
[319560055,1710859831575,-85.6148945,0.00019199,2]
[319560056,1710859831587,-64.3851055,0.00019199,2]
[319560057,1710859831597,-724.90776274,0.000192,2]
[319560058,1710859831610,-625.62,0.000192,2]
[319560059,1710859831627,-1527.47223726,0.000192,2]
[319560060,1710859831637,-300.0,0.00019896,2]
[319560061,1710859831647,-155.25271487,0.00020541,2]
[319560062,1710859831657,-151.49384587,0.00020597,2]
[319560063,1710859831666,-150.80584848,0.00021502,2]
[319560064,1710859831676,-155.25271487,0.000217,2]
[319560065,1710859831686,-154.50257035,0.00024744,2]
[319560066,1710859831696,-186.58,0.00024744,2]
[319560067,1710859831706,-155.25271487,0.00025055,2]
[319560068,1710859831716,-225.13,0.00025152,2]
[319560069,1710859831725,-150.99,0.00026222,2]
[319560070,1710859831735,-200.82,0.00026461,2]
[319560071,1710859831744,-161.78,0.00026825,2]
[319560072,1710859831754,-158.29,0.0002686,10]
[319560073,1710859831764,-250.0,0.00026953,2]
[319560074,1710859831774,-152.74084578,0.00027058,2]
[319560075,1710859831783,-150.0,0.00027064,2]
[319560076,1710859831797,-2401.0,0.000271,3]
[319560077,1710859831806,-200.0,0.00027132,2]
[319560078,1710859831815,-23900.0,0.00027134,2]
[319560079,1710859831825,-577.74,0.00027134,2]
[319560080,1710859831834,-250.0,0.00027165,2]
[319560081,1710859831844,-362.63,0.00027221,2]
[319560083,1710859831853,-1407.95,0.00027227,2]
[319560085,1710859831862,-200.0,0.00027233,2]
[319560087,1710859831872,-169.18,0.00027249,120]
[319560089,1710859831881,-29959.26,0.00027291,2]
[319560091,1710859831891,-225.13,0.00027416,2]
[319560093,1710859831901,-151.49384587,0.00027469,2]
[319560095,1710859831910,-155.25271487,0.00028307,2]
[319560097,1710859831924,-1786.02507925,0.00028316,5]
[319560099,1710859831933,-155.25271487,0.00028546,2]
[319560101,1710859831943,-252.66,0.00029026,2]
[319560103,1710859831953,-250.0,0.00029026,2]
[319560105,1710859831962,-262.6,0.00029244,2]
[319560107,1710859831973,-225.13,0.0002968,2]
[319560109,1710859831983,-1407.95,0.00029967,2]
[319560111,1710859831993,-676.07876318,0.00030214,5]
[319560114,1710859832002,-800.0,0.00030301,2]
[319560115,1710859832012,-165.1727658,0.00030302,2]
[319560118,1710859832021,-165.1727658,0.00030302,2]
[319560120,1710859832031,-165.1727658,0.00030302,2]
[319560121,1710859832042,-302.46,0.00030308,5]
[319560124,1710859832052,-547.96077282,0.0003031,4]
[319560126,1710859832062,-617.49788098,0.0003031,4]
[319560128,1710859832071,-2973.58421331,0.0003031,4]
[319560130,1710859832081,-884.17768365,0.0003031,2]
[319560132,1710859832091,-155.0,0.00030311,4]
[319560134,1710859832100,-158.09190079,0.00030311,4]
[319560136,1710859832110,-8432.77944765,0.00030311,4]
[319560138,1710859832119,-170596.60463248,0.00030312,4]
[319560140,1710859832129,-45337.15286273,0.00030313,30]
[319560142,1710859832138,-2658.41732325,0.00030314,4]
[319560143,1710859832148,-3698.67741836,0.00030314,4]
[319560145,1710859832157,-674.63331179,0.00030315,4]
[319560147,1710859832166,-169.18,0.00030655,120]
[319560149,1710859832176,-155.25271487,0.00030671,7]
[319560151,1710859832185,-151.49384587,0.00031061,7]
[319560153,1710859832197,-151.49384587,0.0003138,7]
[319560155,1710859832209,-676.07876313,0.00031409,5]
[319560157,1710859832218,-225.13,0.00031944,2]
[319560159,1710859832228,-3216.54252637,0.00032,2]
[319560161,1710859832239,-570.85,0.0003207,2]
[319560162,1710859832251,-162.77,0.000321,2]
[319560163,1710859832261,-676.07876313,0.00032603,6]
[319560164,1710859832271,-1150.75718516,0.00032707,2]
[319560165,1710859832284,-257.19281484,0.00032707,2]
[319560166,1710859832297,-77.98097116,0.00032802,2]
[319560167,1710859832319,-72.01902884,0.00032802,2]
[319560168,1710859832329,-150.21260498,0.00033351,7]
[319560169,1710859832338,-151.49384587,0.00033489,7]
[319560170,1710859832348,-676.07876313,0.00033798,6]
[319560171,1710859832358,-153.30432521,0.00033804,7]
[319560172,1710859832368,-169.18,0.00034061,120]
[319560173,1710859832377,-225.13,0.00034208,2]
[319560174,1710859832387,-151.49384587,0.00034601,7]
[319560175,1710859832397,-676.07876313,0.00034992,7]
[319560176,1710859832407,-155.25271487,0.00035466,7]
[319560177,1710859832417,-570.85,0.00036078,2]
[319560178,1710859832426,-676.07876313,0.00036187,7]
[319560179,1710859832435,-210.93389849,0.000364,2]
[319560180,1710859832445,-210.93389832,0.000364,2]
[319560181,1710859832455,-210.93389832,0.000364,2]
[319560182,1710859832465,-210.93389832,0.000364,2]
[319560183,1710859832476,-210.93389832,0.000364,2]
[319560184,1710859832485,-210.93389832,0.000364,2]
[319560185,1710859832495,-210.93389832,0.000364,2]
[319560186,1710859832504,-210.93389832,0.000364,2]
[319560187,1710859832514,-210.93389832,0.000364,2]
[319560188,1710859832523,-225.13,0.00036472,2]
[319560189,1710859832533,-154.50257035,0.00036545,7]
[319560190,1710859832546,-518.78498251,0.000366,2]
[319560191,1710859832556,-518.78498242,0.000366,2]
[319560192,1710859832565,-518.78498242,0.000366,2]
[319560193,1710859832575,-518.78498242,0.000366,2]
[319560194,1710859832584,-518.78498242,0.000366,2]
[319560195,1710859832594,-167.14,0.00036642,120]
[319560196,1710859832603,-500.0,0.00036712,60]
[319560197,1710859832613,-151.49384587,0.00036725,7]
[319560198,1710859832623,-150.0,0.0003676,30]
[319560199,1710859832633,-782.22,0.00036876,60]
[319560200,1710859832642,-11572.74857461,0.00036999,4]
[319560201,1710859832652,-1225.72787324,0.00037001,4]
[319560202,1710859832662,-830.8367,0.00037044,2]
[319560203,1710859832671,-799.03,0.00037067,2]
[319560204,1710859832681,-29999.99,0.00037067,30]
[319560205,1710859832690,-1036.98,0.00037067,2]
[319560206,1710859832699,-5800.0,0.00037167,2]
[319560207,1710859832708,-21407.2745,0.00037244,2]
[319560208,1710859832718,-255.54036368,0.00037352,9]
[319560209,1710859832727,-500.0,0.00037352,2]
[319560210,1710859832736,-676.07876313,0.00037381,8]
[319560211,1710859832755,-151.49384587,0.00037427,7]
[319560212,1710859832766,-3480.40988502,0.00037452,2]
[319560213,1710859832803,-1113.85061498,0.00037452,2]
[319560214,1710859832812,-14549.54938502,0.00037452,2]
[319560215,1710859832825,-1496.1904285,0.00037452,2]
[319560216,1710859832844,-1324.91820582,0.00037452,2]
[319560217,1710859832860,-630.20060201,0.00037452,2]
[319560218,1710859832880,-13022.39027865,0.00037452,2]
[319560219,1710859832889,-40519.9934,0.00037452,2]
[319560220,1710859832899,-150.0,0.00037464,2]
[319560221,1710859832909,-150.0,0.00037465,2]
[319560222,1710859832918,-169.18,0.00037468,120]
[319560223,1710859832928,-60000.0,0.000375,30]
[319560224,1710859832937,-500.0,0.00037534,62]
[319560225,1710859832946,-85223.8939,0.00037552,2]
[319560226,1710859832957,-1000.0,0.00037559,2]
[319560227,1710859832967,-20284.901,0.00037628,2]
[319560228,1710859832977,-216.44528974,0.00037657,12]
[319560229,1710859832986,-7500.0,0.00037658,2]
[319560230,1710859832996,-174.9689904,0.00037658,2]
[319560231,1710859833006,-176.87725285,0.00037659,10]
[319560232,1710859833016,-12504.98613496,0.00037659,10]
[319560233,1710859833025,-2084.81620447,0.00037659,2]
[319560234,1710859833035,-170.67857533,0.00037659,2]
[319560235,1710859833047,-472.394907,0.00037659,2]
[319560236,1710859833057,-186.96762535,0.00037659,7]
[319560237,1710859833067,-715.84628801,0.00037659,2]
[319560238,1710859833076,-782.22,0.00037698,62]
[319560239,1710859833086,-13143.47420394,0.000377,5]
[319560240,1710859833096,-150.54,0.00037751,5]
[319560241,1710859833106,-4302.00755865,0.00037755,4]
[319560242,1710859833116,-172.09730562,0.00037756,2]
[319560243,1710859833126,-249.71675088,0.00037756,4]
[319560244,1710859833136,-18776.66116685,0.00037757,4]
[319560245,1710859833145,-4750.53346211,0.00037757,4]
[319560246,1710859833157,-200.0,0.00037758,2]
[319560247,1710859833166,-200.0,0.00037758,2]
[319560248,1710859833176,-1909.05428,0.00037758,2]
[319560249,1710859833186,-289.99727482,0.00037758,2]
[319560250,1710859833197,-289.99727482,0.00037758,2]
[319560251,1710859833210,-289.99727482,0.00037758,2]
[319560252,1710859833220,-289.99727482,0.00037758,2]
[319560253,1710859833230,-289.99727482,0.00037758,2]
[319560254,1710859833241,-49024.37905094,0.00037758,5]
[319560255,1710859833255,-7539.71600411,0.00037758,5]
[319560276,1710859837522,-210.93389832,0.000364,2]
[319560277,1710859837536,-31023.07950237,0.00037758,5]
[319560278,1710859837561,-560.309,0.00037758,5]
[319560279,1710859837580,-2337.92258777,0.00037758,5]
[319560280,1710859837594,-1465.12306266,0.00037758,5]
[319560281,1710859837644,-2159.73310162,0.00037758,5]
[319560282,1710859837658,-17814.0729,0.00037758,5]
[319560283,1710859837730,-210.93389832,0.000364,2]
[319560284,1710859837740,-62689.06610165,0.00037758,5]
[319560285,1710859837816,-678.57643654,0.00037758,5]
[319560299,1710859839981,-4415.39,0.00037758,5]
[319560300,1710859839995,-4996.0216856,0.00037758,5]
[319560301,1710859840042,-2198.49212684,0.00037758,5]
[319560302,1710859840059,-502.29941872,0.00037758,5]
[319560303,1710859840070,-317.56718006,0.00037758,5]
[319560304,1710859840082,-5008.35722088,0.00037758,5]
[319560305,1710859840110,-628.45436,0.00037758,5]
[319560306,1710859841119,-1132.03785584,0.00037758,5]
[319560307,1710859841131,-1810.84500004,0.00037758,5]
[319560308,1710859841143,-900.43943853,0.00037758,5]
[319560309,1710859841156,-7552.53697116,0.00037758,5]
[319560310,1710859841177,-896.82497611,0.00037758,5]
[319560381,1710859842686,-511.74477419,0.00037758,5]
[319560385,1710859842700,-932.45804,0.00037758,5]
[319560389,1710859842712,-766.00458432,0.00037758,5]
[319560395,1710859842735,-1028275.14045075,0.00037758,5]
[319560399,1710859842747,-738.108,0.00037758,5]
[319560402,1710859842758,-2899.81509787,0.00037758,5]
[319560408,1710859842779,-5407.29167865,0.00037758,5]
[319560424,1710859842852,-14172.75,0.00037758,5]
[319560428,1710859842865,-313.4185825,0.00037758,5]
[319560431,1710859842878,-89999.04465,0.00037758,5]
[319560437,1710859842926,-1487.62096218,0.00037758,5]
[319560440,1710859842939,-94519.86096006,0.00037758,5]
[319560473,1710859845601,-210.93389832,0.000364,2]
[319560474,1710859845612,-326.84445953,0.00037757,4]
[319560475,1710859845622,-8849.56618415,0.00037758,5]
[319560476,1710859845692,-35937.60305195,0.00037758,5]
[319560477,1710859845911,-1446.46259274,0.00037758,5]
[319560478,1710859845923,-1787.1,0.00037758,5]
[319560479,1710859845956,-60661.88803518,0.00037758,5]
[319560480,1710859845968,-2864.936772,0.00037758,5]
[319560481,1710859845988,-1165.81784383,0.00037758,5]
[319560482,1710859846000,-18214.41253113,0.00037758,5]
[319560483,1710859846012,-6843.53035072,0.00037758,5]
[319560485,1710859846023,-473.31270914,0.00037758,5]
[319560488,1710860021364,10791.043981,0.00013851,2]
[319560494,1710860091952,324.45935913,0.00013999,5]